fUSD/lending_fUSD_20241224
["ID","MTS","AMOUNT","RATE_DAILY","PERIOD"]
[346524763,1735028729396,4438.62445217,9e-05,2]
[346524764,1735028736005,150.0,9.888e-05,2]
[346524765,1735028753997,9443.85496883,6.94e-05,2]
[346524766,1735028754033,14032.94116091,6.94e-05,2]
[346524767,1735028761873,967.05883909,9.8e-05,2]
[346524768,1735028761900,4553.90293742,9.8e-05,2]
[346524769,1735028853699,-504.9093969,0.00010899,2]
[346524770,1735028853724,-189.53384069,0.00010936,2]
[346524771,1735028853749,-500.0,0.00010973,2]
[346524772,1735028853773,-500.0,0.00010999,2]
[346524773,1735028853799,-300.0,0.00010999,2]
[346524774,1735028853826,-5210.55676241,0.00011,2]
[346524775,1735028905652,374.02806849,7.888e-05,2]
[346524776,1735028911797,72.06899409,0.0001,2]
[346524779,1735028919680,300.97758575,9e-05,3]
[346524786,1735028969178,-141.69540136,0.0001,2]
[346524787,1735028969199,-195.93,0.00010137,2]
[346524788,1735028969220,-256.12295366,0.000107,2]
[346524789,1735028969240,-500.0,0.00010973,2]
[346524790,1735028969260,-300.0,0.00010998,2]
[346524791,1735028969279,-2561.60161698,0.00010999,2]
[346524827,1735029031634,-1000.0,0.0001078,2]
[346524829,1735029031643,-3000.0,0.0001078,2]
[346524831,1735029031652,-300.0,0.00010998,2]
[346524833,1735029031661,-96680.63770668,0.00010999,2]
[346524835,1735029031670,-10891.32607416,0.00011,2]
[346524837,1735029031683,-136633.09177118,0.00011,2]
[346524839,1735029031694,-7562.44147292,0.00011,2]
[346524845,1735029031851,-500.04139326,0.00011,2]
[346524846,1735029031863,-356.15532581,0.00011,2]
[346524847,1735029031909,-8857.95672403,0.00011,2]
[346524848,1735029031920,-1519.39333125,0.00011,2]
[346524849,1735029031966,-1129.76895749,0.00011,2]
[346524862,1735029037637,-2.21162,0.00010973,2]
[346524872,1735029038060,-497.78838,0.00010973,2]
[346524874,1735029038070,-8817.85119483,0.00011,2]
[346524879,1735029038116,-597.61689777,0.00011,2]
[346524893,1735029039712,-999.98999,0.00011,2]
[346524894,1735029039769,-33653.67132393,0.00011,2]
[346524895,1735029039781,-1923.54,0.00011,2]
[346524896,1735029039825,-280.77105988,0.00011,2]
[346524897,1735029039883,-6468.45552723,0.00011,2]
[346524898,1735029039895,-316.03104545,0.00011,2]
[346524899,1735029040085,-18296.84051069,0.00011,2]
[346524900,1735029040100,-2489.26207106,0.00011,2]
[346524933,1735029043011,-184110.00003,0.00011,2]
[346524951,1735029045677,-564.44648492,0.00011,2]
[346524952,1735029045694,-3025.96956689,0.00011,2]
[346524953,1735029045705,-4423.04168,0.00011,2]
[346524954,1735029045716,-49549.38617121,0.00011,2]
[346524955,1735029045728,-25039.42827274,0.00011,2]
[346524956,1735029045987,-19239.64536771,0.00011,2]
[346524957,1735029045998,-51064.39936,0.00011,2]
[346524958,1735029046034,-3000.0,0.00011,2]
[346524960,1735029046045,-119082.92701892,0.00011,2]
[346524983,1735029961076,154.21,0.00016658,30]
[346524985,1735030017625,153275.84106797,0.00019,30]
[346524990,1735030231769,-359.93,9.677e-05,2]
[346524991,1735030231779,-66858.285,0.0001,2]
[346524992,1735030231787,-2616.12103978,0.0001,2]
[346524993,1735030231797,-454.399991,0.0001,2]
[346524994,1735030231806,-207.61,0.00010137,2]
[346524995,1735030231816,-250.0,0.00010248,2]
[346524996,1735030231825,-164.02,0.00010301,2]
[346524997,1735030231834,-448.15,0.0001034,2]
[346524998,1735030231843,-1298.28,0.00010446,2]
[346524999,1735030231852,-250.0,0.00010459,2]
[346525000,1735030231861,-1230.46,0.00010459,2]
[346525001,1735030231871,-26877.90679931,0.000105,2]
[346525002,1735030231882,-8215.9309715,0.000105,2]
[346525003,1735030231893,-8133.05408552,0.000105,2]
[346525004,1735030231905,-14591.19813767,0.000105,2]
[346525005,1735030231944,-1273.05622712,0.000105,2]
[346525006,1735030231956,-65585.38346793,0.000105,2]
[346525007,1735030231968,-515.24829337,0.000105,2]
[346525008,1735030231980,-547.91945619,0.000105,2]
[346525009,1735030232018,-153386.30256139,0.000105,2]
[346525010,1735030232028,-1000.0,0.00010614,2]
[346525011,1735030232038,-799.26,0.00010672,2]
[346525012,1735030232051,-19261.0,0.00010781,2]
[346525013,1735030232061,-166.95378811,0.000109,2]
[346525014,1735030232071,-190.09589141,0.000109,2]
[346525015,1735030232081,-449.19816251,0.000109,2]
[346525016,1735030232091,-207.3598693,0.000109,2]
[346525017,1735030232100,-287.9718038,0.000109,2]
[346525018,1735030232110,-166.26737464,0.00010973,2]
[346525019,1735030232120,-151.54654503,0.00010973,2]
[346525020,1735030232130,-511.13889382,0.00010973,2]
[346525021,1735030232139,-500.0,0.00010973,2]
[346525022,1735030232149,-500.0,0.00010973,2]
[346525023,1735030232158,-500.0,0.00010973,2]
[346525024,1735030232170,-157.59283735,0.0001099,2]
[346525025,1735030232179,-103053.3865818,0.0001099,2]
[346525026,1735030232192,-42895.31216587,0.0001099,2]
[346525027,1735030232202,-250.0,0.00010991,2]
[346525028,1735030232212,-234.42692736,0.00010999,2]
[346525029,1735030232221,-16905.53294853,0.00010999,2]
[346525034,1735030232292,-2096.14913858,0.00010999,2]
[346525071,1735030237753,-1006.47835887,0.000109,2]
[346525072,1735030238036,-93.11522087,0.000109,2]
[346525073,1735030238049,-1072.79352423,0.00010999,2]
[346525074,1735030238072,-10381.00778816,0.00010999,2]
[346525103,1735030239765,-511.985,0.00010999,2]
[346525104,1735030239928,-24611.20443261,0.00010999,2]
[346525105,1735030239939,-500.0,0.00010999,2]
[346525106,1735030239949,-500.0,0.00010999,2]
[346525107,1735030239959,-500.0,0.00010999,2]
[346525108,1735030239968,-439.34574576,0.00010999,2]
[346525109,1735030239978,-500.0,0.00010999,2]
[346525110,1735030239987,-625.81468323,0.00010999,2]
[346525111,1735030239997,-500.0,0.00010999,2]
[346525112,1735030240007,-1327055.10451172,0.00011,2]
[346525113,1735030240016,-6658.31512743,0.00011,2]
[346525114,1735030240025,-40964.5757011,0.00011,2]
[346525115,1735030240035,-4207171.91668541,0.00011,2]
[346525116,1735030240051,-42486.08489667,0.00011,2]
[346525117,1735030240081,-1112.0,0.00011,2]
[346525118,1735030240106,-1024.9677062,0.00011,2]
[346525124,1735030242813,-768.89942114,0.00011,2]
[346525126,1735030243089,-3719.10875455,0.00011,2]
[346525131,1735030246103,-1156.76820125,0.00011,2]
[346525141,1735030423692,10000.0,0.00012222,10]
[346525142,1735030433519,10000.0,0.00012222,10]
[346525143,1735030442698,10000.0,0.00012222,10]
[346525144,1735030461020,9106.0,0.00012222,10]
[346525145,1735030473057,413.99,8.419e-05,2]
[346525146,1735030485787,-5000.0,0.00015,15]
[346525147,1735030601417,-2030.0,0.000145,5]
[346525148,1735030644469,-500.0,0.0001,2]
[346525149,1735030644496,-220.93,0.00010337,2]
[346525150,1735030644523,-200.0,0.00010459,2]
[346525151,1735030644550,-413.99,0.00010683,2]
[346525152,1735030644576,-222.56,0.00010948,2]
[346525153,1735030644603,-222.56,0.00010951,2]
[346525154,1735030644629,-222.56,0.00010953,2]
[346525155,1735030644654,-222.56,0.00010956,2]
[346525156,1735030644679,-222.56,0.00010959,2]
[346525157,1735030644704,-222.56,0.00010962,2]
[346525158,1735030644730,-222.56,0.00010965,2]
[346525159,1735030644757,-222.56,0.00010968,2]
[346525160,1735030644783,-222.56,0.00010971,2]
[346525161,1735030644808,-500.0,0.00010973,2]
[346525162,1735030644833,-222.56,0.00010974,2]
[346525163,1735030644859,-222.56,0.00010976,2]
[346525164,1735030644886,-222.56,0.00010979,2]
[346525165,1735030644912,-222.56,0.00010982,2]
[346525166,1735030644938,-222.56,0.00010985,2]
[346525167,1735030645268,-222.56,0.00010988,2]
[346525168,1735030645297,-222.56,0.00010991,2]
[346525169,1735030645324,-222.56,0.00010994,2]
[346525170,1735030645349,-222.56,0.00010997,2]
[346525171,1735030645374,-500.0,0.00010999,2]
[346525172,1735030645400,-222.56,0.00011,2]
[346525173,1735030645427,-78586.44,0.00011,2]
[346525174,1735030835559,154.21,0.00016658,30]
[346525175,1735031185569,200.0,9.753e-05,2]
[346525176,1735031296871,-150.0,9.888e-05,2]
[346525177,1735031296892,-150.0,9.888e-05,2]
[346525178,1735031296912,-263.91337234,9.888e-05,2]
[346525179,1735031296932,-169.85779561,9.888e-05,2]
[346525180,1735031296953,-150.0,9.888e-05,2]
[346525181,1735031296973,-150.83812936,9.888e-05,2]
[346525182,1735031296994,-150.94899447,9.888e-05,2]
[346525183,1735031297014,-150.48093492,9.888e-05,2]
[346525184,1735031297034,-274.7746202,9.888e-05,2]
[346525185,1735031297056,-150.0,9.888e-05,2]
[346525186,1735031297076,-150.0,9.888e-05,2]
[346525187,1735031297095,-3008.94673556,0.0001,2]
[346525188,1735031297116,-150.0,0.00010045,2]
[346525189,1735031297136,-150.0,0.00010107,2]
[346525190,1735031297156,-245.64,0.00010137,2]
[346525191,1735031297177,-150.0,0.00010162,2]
[346525192,1735031297427,-150.0,0.00010202,2]
[346525193,1735031297447,-166.66666666,0.00010237,2]
[346525194,1735031297467,-150.0,0.00010327,2]
[346525195,1735031297487,-2000.0,0.00010336,2]
[346525196,1735031297507,-250.0,0.00010356,2]
[346525197,1735031297527,-150.0,0.00010359,2]
[346525198,1735031297548,-150.0,0.00010437,2]
[346525199,1735031297568,-150.0,0.00010437,2]
[346525200,1735031297589,-150.0,0.00010515,2]
[346525201,1735031297609,-150.0,0.00010547,2]
[346525202,1735031297630,-150.0,0.00010672,2]
[346525203,1735031297652,-150.0,0.00010712,2]
[346525204,1735031297673,-150.0,0.00010767,2]
[346525205,1735031297693,-14988.0,0.0001078,2]
[346525206,1735031297714,-1238.21,0.0001078,2]
[346525207,1735031297734,-224.07,0.00010796,2]
[346525208,1735031297754,-150.0,0.00010829,2]
[346525209,1735031297774,-1925.60107403,0.00010899,2]
[346525210,1735031297795,-396.7151595,0.00010899,2]
[346525211,1735031297817,-150.0,0.00010959,2]
[346525212,1735031297838,-500.0,0.00010973,2]
[346525213,1735031297860,-193.43429429,0.00010986,2]
[346525214,1735031297880,-150.0,0.00010986,2]
[346525215,1735031297900,-274.0022227,0.00010986,2]
[346525216,1735031297920,-152.35171148,0.00010986,2]
[346525217,1735031297941,-401.80980888,0.00010998,2]
[346525218,1735031297962,-5992.48361469,0.00010999,2]
[346525219,1735031297983,-1186490.95006055,0.00010999,2]
[346525220,1735031298006,-7579192.30480476,0.00010999,2]
[346525221,1735031358199,-900.0,0.0001078,2]
[346525222,1735031358227,-2800.0,0.0001078,2]
[346525223,1735031358255,-9759.0,0.00010959,2]
[346525224,1735031358284,-7334.0,0.00010959,2]
[346525225,1735031358313,-500.0,0.00010973,2]
[346525226,1735031358342,-206.60246134,0.00010973,2]
[346525227,1735031358373,-247.07164023,0.00010973,2]
[346525228,1735031358402,-500.0,0.00010973,2]
[346525229,1735031358433,-500.0,0.00010998,2]
[346525230,1735031358462,-500.0,0.00010998,2]
[346525231,1735031358490,-500.0,0.00010998,2]
[346525232,1735031358519,-500.0,0.00010998,2]
[346525233,1735031358547,-500.56112312,0.00010998,2]
[346525234,1735031358573,-500.0,0.00010998,2]
[346525235,1735031358604,-500.0,0.00010998,2]
[346525236,1735031358634,-500.0,0.00010998,2]
[346525237,1735031358661,-405.11070351,0.00010998,2]
[346525238,1735031358689,-500.0,0.00010998,2]
[346525239,1735031358718,-500.0,0.00010998,2]
[346525240,1735031358748,-500.0,0.00010998,2]
[346525241,1735031358778,-500.0,0.00010998,2]
[346525242,1735031358806,-500.0,0.00010998,2]
[346525243,1735031358835,-500.0,0.00010998,2]
[346525244,1735031358865,-295.07715968,0.00010998,2]
[346525245,1735031358895,-500.0,0.00010998,2]
[346525246,1735031358924,-454.66439425,0.00010998,2]
[346525247,1735031358953,-500.0,0.00010998,2]
[346525248,1735031358981,-500.0,0.00010998,2]
[346525249,1735031359009,-193.28185635,0.00010998,2]
[346525250,1735031359038,-500.0,0.00010998,2]
[346525251,1735031359067,-500.0,0.00010998,2]
[346525252,1735031359098,-500.0,0.00010998,2]
[346525253,1735031359126,-500.0,0.00010998,2]
[346525254,1735031359155,-181.96928732,0.00010998,2]
[346525255,1735031359185,-500.0,0.00010998,2]
[346525256,1735031359206,-900.0,0.00010999,2]
[346525257,1735031359219,-2800.0,0.00010999,2]
[346525258,1735031359231,-9759.0,0.00010999,2]
[346525259,1735031359242,-7334.0,0.00010999,2]
[346525260,1735031359258,-500.0,0.00010999,2]
[346525261,1735031359270,-206.60246134,0.00010999,2]
[346525262,1735031359282,-247.07164023,0.00010999,2]
[346525263,1735031359294,-500.0,0.00010999,2]
[346525264,1735031359306,-500.0,0.00010999,2]
[346525265,1735031359327,-500.0,0.00010999,2]
[346525266,1735031359349,-500.0,0.00010999,2]
[346525267,1735031359366,-500.0,0.00010999,2]
[346525268,1735031359378,-500.56112312,0.00010999,2]
[346525269,1735031359389,-500.0,0.00010999,2]
[346525270,1735031359401,-500.0,0.00010999,2]
[346525271,1735031359416,-500.0,0.00010999,2]
[346525272,1735031359430,-405.11070351,0.00010999,2]
[346525273,1735031359441,-500.0,0.00010999,2]
[346525274,1735031359458,-500.0,0.00010999,2]
[346525275,1735031359469,-500.0,0.00010999,2]
[346525276,1735031359491,-500.0,0.00010999,2]
[346525277,1735031359506,-500.0,0.00010999,2]
[346525278,1735031359517,-500.0,0.00010999,2]
[346525279,1735031359532,-295.07715968,0.00010999,2]
[346525280,1735031359543,-500.0,0.00010999,2]
[346525281,1735031359554,-454.66439425,0.00010999,2]
[346525282,1735031359568,-500.0,0.00010999,2]
[346525283,1735031359584,-500.0,0.00010999,2]
[346525284,1735031359598,-193.28185635,0.00010999,2]
[346525285,1735031359619,-500.0,0.00010999,2]
[346525286,1735031359629,-500.0,0.00010999,2]
[346525287,1735031359645,-500.0,0.00010999,2]
[346525288,1735031359696,-500.0,0.00010999,2]
[346525289,1735031359739,-181.96928732,0.00010999,2]
[346525290,1735031359750,-500.0,0.00010999,2]
[346525291,1735031359761,-971887.3227484,0.00010999,2]
[346525292,1735031373142,-3955.350266,0.00010999,2]
[346525294,1735031432121,-397.99837625,0.000109,2]
[346525295,1735031432133,-104.89153,0.000109,2]
[346525296,1735031432142,-168.75207026,0.00010973,2]
[346525297,1735031432179,-331.24792974,0.00010973,2]
[346525298,1735031432188,-500.0,0.00010973,2]
[346525299,1735031432198,-300.20556167,0.00010973,2]
[346525300,1735031432207,-412.91816859,0.00010999,2]
[346525301,1735031432239,-29932.55788102,0.00010999,2]
[346525302,1735031432250,-1231.6401349,0.00010999,2]
[346525311,1735031437920,-372.22790633,0.00010999,2]
[346525318,1735031438242,-1703.72990793,0.00010999,2]
[346525319,1735031438292,-1004.14105259,0.00010999,2]
[346525320,1735031438311,-651.249959,0.00010999,2]
[346525322,1735031438336,-1661.88642737,0.00010999,2]
[346525323,1735031438345,-629.59220512,0.00010999,2]
[346525324,1735031438356,-2335.53359181,0.00010999,2]
[346525342,1735031440054,-164.64700817,0.00010989,2]
[346525343,1735031440064,-164.64700817,0.00010989,2]
[346525344,1735031440074,-12.35598364,0.00010999,2]
[346525345,1735031440086,-3697.31972064,0.00010999,2]
[346525346,1735031440131,-348.0930935,0.00010999,2]
[346525347,1735031440143,-420.0,0.00010999,2]
[346525348,1735031440302,-287.41323734,0.00010999,2]
[346525349,1735031440316,-12196.7078,0.00010999,2]
[346525350,1735031440328,-3921.6432,0.00010999,2]
[346525351,1735031440339,-3349.0,0.00010999,2]
[346525352,1735031440361,-1021.095,0.00010999,2]
[346525353,1735031440372,-483.21795857,0.00010999,2]
[346525354,1735031440384,-452.45572213,0.00010999,2]
[346525355,1735031440396,-17118.16159676,0.00010999,2]
[346525369,1735031443263,-9559.55000001,0.00010999,2]
[346525370,1735031443274,-933.89272262,0.00010999,2]
[346525371,1735031443299,-426.29565446,0.00010999,2]
[346525372,1735031443331,-7764.0017081,0.00010999,2]
[346525373,1735031443342,-5358.95820267,0.00010999,2]
[346525374,1735031443352,-495.86595646,0.00010999,2]
[346525375,1735031443363,-3223.8999995,0.00010999,2]
[346525376,1735031443374,-25618.12066467,0.00010999,2]
[346525377,1735031443385,-3197.54513101,0.00010999,2]
[346525378,1735031443414,-1660.0,0.00010999,2]
[346525379,1735031443425,-300.19075284,0.00010999,2]
[346525380,1735031443435,-402.6,0.00010999,2]
[346525406,1735031446048,-2096.34144121,0.00010999,2]
[346525418,1735031446482,-8192.51495258,0.00010999,2]
[346525419,1735031446525,-46009.7821832,0.00010999,2]
[346525420,1735031446553,-1823.50243452,0.00010999,2]
[346525422,1735031446577,-1324.42155403,0.00010999,2]
[346525423,1735031446588,-4519.32312282,0.00010999,2]
[346525424,1735031446622,-8896.85184912,0.00010999,2]
[346525425,1735031446634,-305.33152396,0.00010999,2]
[346525426,1735031446644,-1139.1771887,0.00010999,2]
[346525429,1735031879206,154.21,0.00016658,30]
[346525430,1735031993567,884.25,8.292e-05,2]
[346525431,1735032319695,1064.47956674,9e-05,2]
[346525432,1735032329359,83001.27043326,9e-05,2]
[346525433,1735032329395,67516.34627851,9e-05,2]
[346525434,1735032336056,28000.0,8e-05,2]
[346525435,1735032353795,4604.96735545,6.94e-05,2]
[346525436,1735032365767,11034.8582301,7e-05,2]
[346525437,1735032398147,-150.74294153,9.8e-05,2]
[346525446,1735032564598,388.88,9.369e-05,2]
[346525448,1735032598109,165.93,9.36e-05,2]
[346525449,1735032603007,181.79068419,9.369e-05,2]
[346525465,1735032632321,-215.92,9.768e-05,2]
[346525466,1735032632331,-164.75764052,9.771e-05,2]
[346525467,1735032632385,-1983.02079453,9.771e-05,2]
[346525468,1735032632395,-215.92,9.771e-05,2]
[346525469,1735032632405,-215.92,9.774e-05,2]
[346525470,1735032632415,-215.92,9.776e-05,2]
[346525471,1735032632424,-215.92,9.779e-05,2]
[346525472,1735032632433,-1491.67096651,9.779e-05,2]
[346525473,1735032632443,-265.33272251,9.781e-05,2]
[346525474,1735032632452,-215.92,9.781e-05,2]
[346525475,1735032632462,-215.92,9.784e-05,2]
[346525476,1735032632471,-215.92,9.787e-05,2]
[346525477,1735032632479,-215.92,9.789e-05,2]
[346525478,1735032632488,-215.92,9.792e-05,2]
[346525479,1735032632498,-215.92,9.794e-05,2]
[346525480,1735032632507,-215.92,9.797e-05,2]
[346525481,1735032632516,-215.92,9.799e-05,2]
[346525482,1735032632526,-9753.93551645,9.8e-05,2]
[346525483,1735032632537,-6290.0000001,9.8e-05,2]
[346525484,1735032632549,-876.23771165,9.8e-05,2]
[346525485,1735032632558,-205.0,9.8e-05,2]
[346525486,1735032632567,-215.92,9.802e-05,2]
[346525487,1735032632577,-215.92,9.805e-05,2]
[346525488,1735032632586,-215.92,9.807e-05,2]
[346525489,1735032632595,-215.92,9.81e-05,2]
[346525490,1735032632606,-215.92,9.812e-05,2]
[346525491,1735032632616,-1843.26,9.814e-05,2]
[346525492,1735032632625,-215.92,9.815e-05,2]
[346525493,1735032632635,-215.92,9.817e-05,2]
[346525494,1735032632644,-150.0,9.888e-05,2]
[346525495,1735032632653,-150.0,9.888e-05,2]
[346525496,1735032632662,-250.0,9.91e-05,2]
[346525497,1735032632671,-234.42692736,9.999e-05,2]
[346525498,1735032632680,-659.63536099,0.0001,2]
[346525499,1735032632692,-1360.0,0.0001,2]
[346525500,1735032632704,-428.54864554,0.0001,2]
[346525501,1735032632714,-411.45135446,0.0001,2]
[346525502,1735032632725,-913.69201249,0.0001,2]
[346525508,1735032632778,-2970.2462318,0.0001,2]
[346525509,1735032632791,-1587.89459183,0.0001,2]
[346525510,1735032632810,-47095.48927278,0.0001,2]
[346525511,1735032632819,-22640.21521455,0.0001,2]
[346525512,1735032632829,-1000.0,0.00010048,2]
[346525513,1735032632839,-248.11886144,0.000101,2]
[346525514,1735032632848,-244.21,0.00010137,2]
[346525515,1735032632864,-207.61,0.00010137,2]
[346525516,1735032632875,-1000.0,0.00010205,2]
[346525517,1735032632885,-23900.0,0.00010206,2]
[346525518,1735032632895,-186.33,0.00010281,2]
[346525519,1735032632905,-224.07,0.00010306,2]
[346525520,1735032632914,-206.13,0.00010382,2]
[346525521,1735032632924,-500.0,0.00010493,2]
[346525522,1735032632933,-854.24,0.00010498,2]
[346525523,1735032632944,-388.88,0.0001054,2]
[346525524,1735032632954,-884.25,0.00010556,2]
[346525526,1735032632964,-615.0,0.00010575,2]
[346525528,1735032632973,-1000.0,0.0001078,2]
[346525529,1735032632983,-8569.0,0.00010889,2]
[346525531,1735032632992,-3000.0,0.0001089,2]
[346525532,1735032633002,-154.41,0.00010894,2]
[346525533,1735032633012,-5354.2,0.00010899,2]
[346525534,1735032633022,-174.65639378,0.000109,2]
[346525535,1735032633031,-154.41,0.00010903,2]
[346525536,1735032633041,-154.41,0.00010912,2]
[346525537,1735032633051,-154.41,0.00010921,2]
[346525538,1735032633060,-154.41,0.0001093,2]
[346525539,1735032633070,-154.41,0.00010939,2]
[346525540,1735032633080,-154.41,0.00010948,2]
[346525541,1735032633090,-500.0,0.00010973,2]
[346525542,1735032633099,-500.0,0.00010973,2]
[346525543,1735032633115,-2587.849,0.00010973,2]
[346525544,1735032633131,-211.063,0.00010973,2]
[346525545,1735032633141,-5550.0,0.0001098,2]
[346525546,1735032633151,-5520.0,0.00010989,2]
[346525547,1735032633161,-8930.0,0.0001099,2]
[346525548,1735032633171,-500.0,0.00010998,2]
[346525549,1735032633180,-707821.13811727,0.00010998,2]
[346525550,1735032633192,-94321.00000002,0.00010998,2]
[346525551,1735032633204,-6948.10947444,0.00010998,2]
[346525559,1735032638171,-2900.0,0.0001078,2]
[346525560,1735032638181,-92250.0,0.00010998,2]
[346525561,1735032638193,-437.24137499,0.00010998,2]
[346525562,1735032638216,-47207.50000003,0.00010998,2]
[346525563,1735032638228,-17229.00507563,0.00010998,2]
[346525564,1735032638239,-602.36438288,0.00010998,2]
[346525565,1735032638249,-9564.89454332,0.00010998,2]
[346525566,1735032638270,-329.85867089,0.00010998,2]
[346525567,1735032638568,-3613.69073869,0.00010998,2]
[346525568,1735032638580,-1455.02450611,0.00010998,2]
[346525569,1735032638608,-34756.97629344,0.00010998,2]
[346525570,1735032638620,-18200.0000032,0.00010998,2]
[346525571,1735032638631,-4394.34582229,0.00010998,2]
[346525572,1735032638660,-9395.25981875,0.00010998,2]
[346525573,1735032638670,-4853.9117279,0.00010998,2]
[346525574,1735032638679,-13723.27750336,0.00010999,2]
[346525578,1735032638696,-555.84915312,0.00010999,2]
[346525582,1735032638707,-1120.31046123,0.00010999,2]
[346525583,1735032638719,-1915.0,0.00010999,2]
[346525586,1735032640214,-343.48470714,0.00010999,2]
[346525587,1735032640225,-340.60882801,0.00010999,2]
[346525588,1735032640237,-1627.05411205,0.00010999,2]
[346525589,1735032640276,-2670221.07715634,0.00010999,2]
[346525590,1735032640336,-884.99999998,0.00010999,2]
[346525591,1735032640397,-257.34681826,0.00010999,2]
[346525592,1735032640408,-14133.58919961,0.00010999,2]
[346525593,1735032640462,-48122.7723879,0.00010999,2]
[346525594,1735032640474,-3142.80000004,0.00010999,2]
[346525595,1735032640485,-3928.04104428,0.00010999,2]
[346525596,1735032640523,-842.20452302,0.00010999,2]
[346525597,1735032640585,-1444.55298,0.00010999,2]
[346525598,1735032640597,-3333.0,0.00010999,2]
[346525599,1735032640611,-639.56,0.00010999,2]
[346525600,1735032640622,-33637.23280008,0.00010999,2]
[346525616,1735032643154,-466.42268856,0.00010999,2]
[346525617,1735032643269,-4750.0,0.00010999,2]
[346525618,1735032643280,-1195055.71293427,0.00010999,2]
[346525619,1735032643329,-3056.09164435,0.00010999,2]
[346525620,1735032643340,-14285.92213661,0.00010999,2]
[346525621,1735032643352,-4770.1599268,0.00010999,2]
[346525622,1735032643389,-561.17,0.00010999,2]
[346525623,1735032643400,-1668.02297108,0.00010999,2]
[346525624,1735032643411,-993.12736041,0.00010999,2]
[346525625,1735032643422,-38080.38015301,0.00010999,2]
[346525626,1735032643451,-16.74921568,0.00010999,2]
[346525627,1735032643463,-3382.33201764,0.00010999,2]
[346525634,1735032646176,-3951.0,0.00010999,2]
[346525635,1735032646204,-558.49999574,0.00010999,2]
[346525636,1735032646216,-339.3949995,0.00010999,2]
[346525637,1735032646228,-40763.30345377,0.00010999,2]
[346525638,1735032646239,-380.60238852,0.00010999,2]
[346525639,1735032646250,-446.20912732,0.00010999,2]
[346525640,1735032646265,-3065.62537981,0.00010999,2]
[346525641,1735032646276,-47729.23468714,0.00010999,2]
[346525642,1735032646387,-263.1997,0.00010999,2]
[346525643,1735032646444,-381.13393786,0.00010999,2]
[346525647,1735032847153,1029.81,9.009e-05,2]
[346525649,1735032907709,9290.0,0.00019,30]
[346525650,1735032912560,-900.0,0.0001078,2]
[346525651,1735032912585,-2963.0,0.00010889,2]
[346525652,1735032912609,-210.12461969,0.00010899,2]
[346525653,1735032912632,-151.54654503,0.00010973,2]
[346525654,1735032912654,-500.0,0.00010973,2]
[346525655,1735032912676,-500.0,0.00010973,2]
[346525656,1735032912698,-157.59283735,0.00010989,2]
[346525657,1735032912720,-500.0,0.00010998,2]
[346525658,1735032912744,-644.27714669,0.00010998,2]
[346525659,1735032912767,-500.0,0.00010998,2]
[346525660,1735032912788,-486.25380142,0.00010998,2]
[346525661,1735032912811,-500.0,0.00010998,2]
[346525662,1735032912834,-500.0,0.00010998,2]
[346525663,1735032912858,-500.0,0.00010998,2]
[346525664,1735032912883,-500.0,0.00010998,2]
[346525665,1735032912907,-500.0,0.00010998,2]
[346525666,1735032912930,-500.0,0.00010998,2]
[346525667,1735032912954,-500.0,0.00010998,2]
[346525668,1735032912977,-557.81011409,0.00010998,2]
[346525669,1735032913001,-500.0,0.00010998,2]
[346525670,1735032913024,-391.07420723,0.00010998,2]
[346525671,1735032913048,-499.99999999,0.00010998,2]
[346525672,1735032913072,-500.0,0.00010998,2]
[346525673,1735032913097,-1164.0,0.00010999,2]
[346525674,1735032913126,-35374.32072851,0.00010999,2]
[346525678,1735033090977,256853.52204167,0.0001099,10]
[346525679,1735033091008,85150.0,0.0001099,10]